bitfinex/quotes_BTCUSD_20251215
["timestamp","ask_amount","ask_price","bid_price","bid_amount"]
[1765772298658,0.01515822,89620.0,89615.0,0.01115884]
[1765772298855,0.001,89618.0,89615.0,0.01115884]
[1765772299056,0.004,89620.0,89617.0,0.01115859]
[1765772299518,0.001,89618.0,89615.0,0.01115884]
[1765772299871,0.01215847,89618.0,89615.0,0.01115884]
[1765772300084,0.01115847,89618.0,89615.0,0.01115884]
[1765772300280,0.23432813,89618.0,89615.0,0.01115884]
[1765772300501,0.02391,89617.0,89613.0,0.01115909]
[1765772300799,0.01115934,89611.0,89608.0,0.05105242]
[1765772301206,0.0115,89609.0,89607.0,0.03989271]
[1765772301445,0.0115,89609.0,89606.0,0.01115996]
[1765772301563,0.0115,89609.0,89607.0,0.22319449]
[1765772301967,0.23433581,89615.0,89610.0,0.01115946]
[1765772302202,0.02265897,89614.0,89610.0,0.01115946]
[1765772302378,0.02391,89613.0,89610.0,0.01115946]
[1765772303977,0.01515822,89620.0,89615.0,0.23433576]
[1765772304150,0.01515822,89620.0,89617.0,0.01115859]
[1765772304964,0.01115834,89619.0,89615.0,0.01115884]
[1765772306139,0.01215834,89619.0,89615.0,0.01115884]
[1765772306342,0.01115847,89618.0,89615.0,0.01115884]
[1765772306555,0.01115859,89617.0,89613.0,0.01115909]
[1765772307310,0.0278,89614.0,89610.0,0.01277233]
[1765772307548,0.0163,89613.0,89611.0,0.23434598]
[1765772307768,0.04094,89613.0,89611.0,0.01115934]
[1765772308435,0.04094,89613.0,89610.0,0.01277233]
[1765772309616,0.05209909,89613.0,89610.0,0.01277233]
[1765772310020,0.22318439,89612.0,89610.0,0.00161287]
[1765772310217,0.05209909,89613.0,89610.0,0.00161287]
[1765772310421,0.03579909,89613.0,89610.0,0.00161287]
[1765772310619,0.03579909,89613.0,89610.0,0.01277233]
[1765772310832,0.02464,89613.0,89610.0,0.01277233]
[1765772311051,0.02464,89613.0,89611.0,0.22318688]
[1765772311253,0.02464,89613.0,89610.0,0.23595926]
[1765772312051,0.0115,89614.0,89611.0,0.01115934]
[1765772312434,0.03558,89614.0,89611.0,0.01115934]
[1765772313247,0.03558,89614.0,89611.0,0.23434382]
[1765772314259,0.03558,89614.0,89611.0,0.01115934]
[1765772314478,0.02408,89613.0,89611.0,0.01115934]
[1765772314918,0.02408,89613.0,89611.0,0.23434386]
[1765772315076,0.01581,89612.0,89610.0,0.22318937]
[1765772315278,0.01581,89611.0,89610.0,0.23434883]
[1765772316688,0.03989,89611.0,89610.0,0.01115946]
[1765772317090,0.01581,89611.0,89610.0,0.01115946]
[1765772317344,0.0115,89614.0,89611.0,0.23434554]
[1765772317531,0.03558,89614.0,89611.0,0.23434554]
[1765772318551,0.02408,89613.0,89611.0,0.23434554]
[1765772319813,0.01581,89612.0,89611.0,0.01115934]
[1765772320024,0.01115834,89619.0,89615.0,0.2231762]
[1765772320237,0.01515822,89620.0,89616.0,0.01115872]
[1765772320437,0.01115859,89617.0,89612.0,0.22318422]
[1765772320633,0.01115872,89616.0,89612.0,0.01115921]
[1765772320909,0.01115872,89616.0,89603.0,0.0176]
[1765772320910,0.01115946,89610.0,89606.0,0.03989271]
[1765772321128,0.22319795,89607.0,89603.0,0.03989271]
[1765772321331,0.22319795,89607.0,89602.0,0.01116046]
[1765772321332,0.23435779,89607.0,89602.0,0.03989271]
[1765772321533,0.23435779,89607.0,89601.0,0.03989271]
[1765772321736,0.25843779,89607.0,89601.0,0.05105329]
[1765772321939,0.25843779,89607.0,89601.0,0.03989271]
[1765772322118,0.25843779,89607.0,89602.0,0.03989271]
[1765772322281,0.25843779,89607.0,89604.0,0.14255602]
[1765772322517,0.25843779,89607.0,89604.0,0.14155602]
[1765772322714,0.22320183,89605.0,89604.0,0.14155602]
[1765772323119,0.23535779,89607.0,89604.0,0.14155602]
[1765772323320,0.22320183,89605.0,89604.0,0.14155602]
[1765772323994,0.02408,89606.0,89604.0,0.14155602]
[1765772325348,0.01116009,89605.0,89602.0,0.01116046]
[1765772325478,0.002,89606.0,89603.0,0.01116034]
[1765772325681,0.01116009,89605.0,89602.0,0.05105317]
[1765772325887,0.01116034,89603.0,89600.0,0.03989271]
[1765772326129,0.01116034,89603.0,89600.0,0.05105342]
[1765772326359,0.01116034,89603.0,89600.0,0.01116071]
[1765772326708,0.01315996,89606.0,89602.0,0.01116046]
[1765772327111,0.23436192,89605.0,89601.0,0.01116058]
[1765772327321,0.22321428,89600.0,89597.0,0.03989271]
[1765772327487,0.22321428,89600.0,89597.0,0.00011511]
[1765772327488,0.23902926,89598.0,89597.0,0.00011511]
[1765772327888,0.26310926,89598.0,89597.0,0.00011511]
[1765772328079,0.03989,89598.0,89597.0,0.00011511]
[1765772328283,0.22321668,89600.0,89597.0,0.00011511]
[1765772328543,0.01116071,89600.0,89597.0,0.01127619]
[1765772328758,0.002,89598.0,89597.0,0.23449794]
[1765772329168,0.0115,89602.0,89599.0,0.23437754]
[1765772329299,0.01116071,89600.0,89597.0,0.01127619]
[1765772329498,0.01416071,89600.0,89597.0,0.00011511]
[1765772329718,0.003,89600.0,89597.0,0.23449668]
[1765772330153,0.003,89600.0,89597.0,0.01127619]
[1765772330573,0.01116058,89601.0,89597.0,0.23449772]
[1765772330997,0.23437538,89600.0,89597.0,0.00011511]
[1765772331589,0.01116058,89601.0,89598.0,0.01116096]
[1765772331900,0.01316058,89601.0,89598.0,0.01116096]
[1765772332312,0.01116058,89601.0,89598.0,0.01116096]
[1765772332742,0.002,89600.0,89597.0,0.01127619]
[1765772332962,0.002,89600.0,89597.0,0.23449636]
[1765772333719,0.02266046,89602.0,89597.0,0.23449636]
[1765772333720,0.01116058,89601.0,89598.0,0.01116096]
[1765772334122,0.01316058,89601.0,89598.0,0.01116096]
[1765772334327,0.002,89601.0,89598.0,0.01116096]
[1765772334559,0.002,89601.0,89597.0,0.00011511]
[1765772334560,0.22321677,89599.0,89597.0,0.00011511]
[1765772334765,0.23437594,89600.0,89597.0,0.00011511]
[1765772334915,0.24729915,89599.0,89597.0,0.00011511]
[1765772335315,0.03989,89598.0,89597.0,0.00011511]
[1765772335518,0.26310926,89598.0,89597.0,0.00011511]
[1765772336590,0.37433026,89598.0,89597.0,0.00011511]
[1765772337199,0.26510926,89598.0,89597.0,0.00011511]
[1765772338892,0.04189,89598.0,89597.0,0.00011511]
[1765772340667,0.153111,89598.0,89597.0,0.00011511]
[1765772341223,0.04189,89598.0,89597.0,0.00011511]
[1765772341756,0.26510926,89598.0,89597.0,0.00011511]
[1765772342337,0.04189,89598.0,89597.0,0.00011511]
[1765772342972,0.26510926,89598.0,89597.0,0.00011511]
[1765772347279,0.37633026,89598.0,89597.0,0.00011511]
[1765772347702,1.66703026,89598.0,89597.0,0.00011511]
[1765772347919,1.73318029,89598.0,89597.0,0.00011511]
[1765772348127,0.0111642,89572.0,89568.0,0.05105741]
[1765772348323,0.0111642,89572.0,89568.0,0.0111647]
[1765772348527,0.03378,89571.0,89569.0,0.22329154]
[1765772348727,0.04006,89570.0,89568.0,0.0111647]
[1765772349145,0.04006,89569.0,89567.0,0.01116482]
[1765772349341,0.04006,89569.0,89567.0,0.23446072]
[1765772350452,0.0111652,89564.0,89560.0,0.38692539]
[1765772350677,0.01116495,89566.0,89561.0,0.01116557]
[1765772350678,0.01116507,89565.0,89561.0,0.01116557]
[1765772350876,0.01116495,89566.0,89561.0,0.01116557]
[1765772350877,0.01116495,89566.0,89562.0,0.01116544]
[1765772351082,0.26216236,89563.0,89560.0,0.14155602]
[1765772351495,0.01581,89561.0,89559.0,0.005582]
[1765772351926,0.04006,89561.0,89559.0,0.005582]
[1765772352363,0.01188,89563.0,89559.0,0.005582]
[1765772352571,0.01188,89563.0,89560.0,0.23447966]
[1765772353036,0.01188,89563.0,89560.0,0.23547966]
[1765772353237,0.001,89561.0,89560.0,0.23547966]
[1765772353637,0.01188,89563.0,89560.0,0.23547966]
[1765772354207,0.01288,89563.0,89560.0,0.23547966]
[1765772354409,0.01288,89563.0,89560.0,0.23447966]
[1765772354618,0.01288,89563.0,89560.0,0.23547966]
[1765772355823,0.01288,89563.0,89560.0,0.23447966]
[1765772356247,0.01288,89563.0,89560.0,0.23547966]
[1765772359076,0.01288,89563.0,89562.0,0.22330899]
[1765772359876,0.01188,89563.0,89562.0,0.22330899]
[1765772360231,0.01288,89563.0,89562.0,0.22430899]
[1765772360658,0.03713,89563.0,89562.0,0.22430899]
[1765772360863,0.01288,89563.0,89562.0,0.22430899]
[1765772364904,0.001,89563.0,89562.0,0.22430899]
[1765772365916,0.001,89563.0,89562.0,0.26389186]
[1765772369701,0.001,89563.0,89562.0,0.24099186]
[1765772373050,0.001,89563.0,89562.0,0.26464186]
[1765772373236,0.001,89563.0,89562.0,0.24099186]
[1765772373638,0.001,89563.0,89562.0,0.26464186]
[1765772374312,0.04082,89563.0,89562.0,0.001]
[1765772375137,1.53062875,89563.0,89562.0,0.001]
[1765772375345,1.442741,89563.0,89562.0,0.001]
[1765772376097,0.111221,89560.0,89559.0,0.005582]
[1765772376309,1.127441,89560.0,89559.0,0.005582]
[1765772376550,1.151041,89560.0,89559.0,0.005582]
[1765772377719,1.444741,89560.0,89559.0,0.005582]
[1765772379058,1.445741,89560.0,89559.0,0.005582]
[1765772379422,1.55624862,89560.0,89559.0,0.005582]
[1765772381337,1.77956259,89560.0,89559.0,0.005582]
[1765772381540,1.66905497,89560.0,89559.0,0.005582]
[1765772399088,0.66905497,89560.0,89559.0,0.005582]
[1765772399288,1.66905497,89560.0,89559.0,0.005582]
[1765772400172,0.66905497,89560.0,89559.0,0.005582]
[1765772400411,1.66905497,89560.0,89559.0,0.005582]
[1765772400823,0.97195497,89560.0,89559.0,0.005582]
[1765772401002,0.86073397,89560.0,89559.0,0.005582]
[1765772401214,1.55783397,89560.0,89559.0,0.005582]
[1765772401586,0.55783397,89560.0,89559.0,0.005582]
[1765772401790,0.004,89560.0,89559.0,0.04522487]
[1765772401991,0.004,89560.0,89559.0,0.26854134]
[1765772402151,0.004,89560.0,89559.0,0.37984134]
[1765772402796,0.004,89560.0,89559.0,0.39180134]
[1765772403590,0.003,89560.0,89559.0,0.39180134]
[1765772403798,0.004,89560.0,89559.0,0.39180134]
[1765772404194,0.01116245,89586.0,89582.0,0.01116295]
[1765772406065,0.01316245,89586.0,89582.0,0.01116295]
[1765772406438,0.002,89586.0,89584.0,0.22325415]
[1765772406642,0.002,89586.0,89580.0,0.24531571]
[1765772406867,0.002,89586.0,89583.0,0.22325664]
[1765772407439,0.0111622,89588.0,89584.0,0.0111627]
[1765772407875,0.002,89586.0,89584.0,0.0111627]
[1765772408084,0.002,89586.0,89583.0,0.01116283]
[1765772408249,0.01116233,89587.0,89583.0,0.01116283]
[1765772409376,0.01116245,89586.0,89583.0,0.01116283]
[1765772409583,0.01116345,89578.0,89572.0,0.2344478]
[1765772409784,0.01116357,89577.0,89572.0,0.0111642]
[1765772409983,0.02312357,89577.0,89572.0,0.0111642]
[1765772410190,0.01116357,89577.0,89572.0,0.0111642]
[1765772410398,0.01116357,89577.0,89572.0,0.23444791]
[1765772410617,0.01116357,89577.0,89573.0,0.01116407]
[1765772410825,0.01116345,89578.0,89574.0,0.23444302]
[1765772411317,0.01116345,89578.0,89575.0,0.01116382]
[1765772412273,0.0197727,89584.0,89580.0,0.0111632]
[1765772412418,0.0197727,89584.0,89579.0,0.01116333]
[1765772412629,0.01116295,89582.0,89579.0,0.01116333]
[1765772414814,0.01216295,89582.0,89579.0,0.01116333]
[1765772415169,0.01116345,89578.0,89575.0,0.01277669]
[1765772415370,0.01116345,89578.0,89575.0,0.00161287]
[1765772415597,0.22327159,89577.0,89575.0,0.00161287]
[1765772417233,0.22327159,89577.0,89575.0,0.00261287]
[1765772417454,0.02312345,89578.0,89575.0,0.00261287]
[1765772417858,0.01116333,89579.0,89575.0,0.00261287]
[1765772418073,0.0111632,89580.0,89576.0,0.23443699]
[1765772419272,0.01116308,89581.0,89578.0,0.01116345]
[1765772420085,0.001,89580.0,89578.0,0.01116345]
[1765772420573,0.01116308,89581.0,89578.0,0.01116345]
[1765772420908,0.001,89581.0,89578.0,0.2344317]
[1765772421063,0.01216308,89581.0,89577.0,0.01116357]
[1765772421403,0.01116308,89581.0,89577.0,0.01116357]
[1765772421762,0.001,89580.0,89578.0,0.23443255]
[1765772422163,0.001,89580.0,89578.0,0.23543255]
[1765772422638,0.001,89580.0,89578.0,0.01116345]
[1765772422974,0.01116308,89581.0,89578.0,0.01116345]
[1765772423178,0.01216308,89581.0,89578.0,0.01116345]
[1765772423407,0.01216308,89581.0,89578.0,0.01216345]
[1765772423805,0.01116308,89581.0,89578.0,0.01216345]
[1765772424153,0.01216308,89581.0,89578.0,0.01216345]
[1765772425517,0.01116333,89579.0,89575.0,0.02366669]
[1765772426787,0.01216333,89579.0,89575.0,0.02366669]
[1765772427085,0.01216333,89579.0,89575.0,0.02466669]
[1765772427467,0.01116345,89578.0,89575.0,0.01350287]
[1765772427645,0.2344349,89578.0,89575.0,0.01350287]
[1765772427854,0.23983409,89576.0,89575.0,0.00261287]
[1765772428311,0.23983409,89576.0,89575.0,0.00161287]
[1765772428712,0.22327409,89576.0,89575.0,0.00261287]
[1765772429154,0.22327409,89576.0,89568.0,0.14155602]
[1765772429155,0.22329094,89570.0,89568.0,0.14155602]
[1765772429356,0.22331148,89561.0,89559.0,0.005582]
[1765772429579,0.01196,89560.0,89559.0,0.005582]
[1765772430996,0.01196,89560.0,89559.0,0.009582]
[1765772431736,0.05109,89560.0,89559.0,0.014582]
[1765772431936,0.453011,89560.0,89559.0,0.009582]
[1765772432159,0.453011,89560.0,89559.0,0.015582]
[1765772432315,0.453011,89560.0,89559.0,0.009582]
[1765772432511,0.453011,89560.0,89559.0,0.005582]
[1765772432719,0.453011,89560.0,89559.0,0.006582]
[1765772432893,0.453011,89560.0,89559.0,0.005582]
[1765772433705,0.454011,89560.0,89559.0,0.005582]
[1765772434953,0.34279,89560.0,89559.0,0.005582]
[1765772435156,0.454011,89560.0,89559.0,0.005582]
[1765772438537,0.34279,89560.0,89559.0,0.005582]
[1765772439427,0.454011,89560.0,89559.0,0.005582]
[1765772445077,1.454011,89560.0,89559.0,0.005582]
[1765772448605,1.163311,89560.0,89559.0,0.005582]
[1765772449353,1.05209,89560.0,89559.0,0.005582]
[1765772449554,1.163311,89560.0,89559.0,0.005582]
[1765772465945,1.180951,89560.0,89559.0,0.005582]
[1765772466388,1.06973,89560.0,89559.0,0.005582]
[1765772466603,1.180951,89560.0,89559.0,0.005582]
[1765772467404,1.179951,89560.0,89559.0,0.005582]
[1765772467728,1.181951,89560.0,89559.0,0.005582]
[1765772468091,1.182951,89560.0,89559.0,0.005582]
[1765772478400,0.17203,89560.0,89559.0,0.005582]
[1765772478610,0.003,89560.0,89559.0,0.00719487]
[1765772478831,0.003,89560.0,89559.0,0.02267487]
[1765772479471,0.001,89560.0,89559.0,0.00719487]
[1765772479845,0.0111652,89564.0,89561.0,0.01116557]
[1765772480402,0.0346752,89564.0,89561.0,0.01116557]
[1765772481200,0.01116507,89565.0,89562.0,0.01116544]
[1765772481820,0.03467507,89565.0,89562.0,0.01116544]
[1765772482234,0.001,89564.0,89562.0,0.01116544]
[1765772482444,0.0121652,89564.0,89561.0,0.01116557]
[1765772482643,0.0111652,89564.0,89561.0,0.01116557]
[1765772482840,0.03467507,89565.0,89561.0,0.01116557]
[1765772483062,0.01116532,89563.0,89560.0,0.01116569]
[1765772483218,0.01116532,89563.0,89559.0,0.00719487]
[1765772483425,0.01116544,89562.0,89559.0,0.01836069]
[1765772483831,0.01116532,89563.0,89560.0,0.01116569]
[1765772484026,0.23447443,89562.0,89559.0,0.00719487]
[1765772484228,0.25798443,89562.0,89559.0,0.00719487]
[1765772484429,0.25798491,89562.0,89559.0,0.00719487]
[1765772484835,0.23447491,89562.0,89559.0,0.00719487]
[1765772485564,0.01216544,89562.0,89559.0,0.00719487]
[1765772485766,0.001,89562.0,89559.0,0.2416763]
[1765772487896,0.01216544,89562.0,89557.0,0.18021965]
[1765772488126,0.23447705,89561.0,89556.0,0.01116619]
[1765772488298,0.01216544,89562.0,89558.0,0.01116594]
[1765772488805,0.01116544,89562.0,89558.0,0.01116594]
[1765772489054,0.01416544,89562.0,89558.0,0.01116594]
[1765772489265,0.001,89561.0,89558.0,0.01116594]
[1765772489472,0.01116544,89562.0,89558.0,0.01116594]
[1765772489876,0.003,89562.0,89559.0,0.23448185]
[1765772490099,0.002,89562.0,89559.0,0.23448162]
[1765772490479,0.002,89562.0,89559.0,0.01116582]
[1765772490683,0.23647456,89562.0,89559.0,0.01116582]
[1765772491063,0.01116544,89562.0,89559.0,0.01116582]
[1765772491412,0.01216544,89562.0,89559.0,0.01116582]
[1765772491994,0.01316544,89562.0,89559.0,0.01116582]
[1765772492357,0.002,89562.0,89559.0,0.23448114]
[1765772492563,0.23647551,89562.0,89558.0,0.01116594]
[1765772493221,0.01316544,89562.0,89558.0,0.01116594]
[1765772493601,0.01316544,89562.0,89556.0,0.02205619]
[1765772493602,0.01116582,89559.0,89556.0,0.01089]
[1765772493778,0.2344849,89558.0,89552.0,0.22333335]
[1765772493975,0.2344849,89558.0,89553.0,0.02213376]
[1765772494623,0.01116619,89556.0,89553.0,0.02213376]
[1765772495035,0.25838222,89556.0,89553.0,7.719e-05]
[1765772495191,0.01208,89555.0,89553.0,7.719e-05]
[1765772495398,0.22332894,89554.0,89553.0,7.719e-05]
[1765772496347,0.22332894,89554.0,89553.0,0.00107719]
[1765772496348,0.26292894,89554.0,89553.0,0.00107719]
[1765772496544,0.0396,89554.0,89553.0,0.00107719]
[1765772496849,0.01571,89554.0,89553.0,7.719e-05]
[1765772497009,0.01571,89554.0,89553.0,0.00107719]
[1765772499838,0.01208,89555.0,89553.0,0.00107719]
[1765772500050,0.01116544,89562.0,89558.0,0.01116594]
[1765772500719,0.01116557,89561.0,89558.0,0.01116594]
[1765772502098,0.01216557,89561.0,89558.0,0.01116594]
[1765772502420,0.001,89561.0,89558.0,0.23448478]
[1765772503131,0.01216557,89561.0,89558.0,0.01116594]
[1765772503317,0.23547739,89561.0,89558.0,0.01116594]
[1765772503779,0.25936739,89561.0,89557.0,0.01116607]
[1765772503998,0.01116569,89560.0,89557.0,0.01116607]
[1765772504409,0.01208,89558.0,89555.0,0.01116632]
[1765772504713,0.01116607,89557.0,89553.0,0.01124376]
[1765772505334,0.22332882,89555.0,89553.0,7.719e-05]
[1765772507691,0.22332882,89555.0,89553.0,0.00107719]
[1765772510977,0.23540882,89555.0,89553.0,0.00107719]
[1765772513407,0.25929882,89555.0,89553.0,0.00107719]
[1765772513993,0.150821,89554.0,89553.0,0.00107719]
[1765772514493,0.0396,89554.0,89553.0,0.00107719]
[1765772514903,0.01571,89554.0,89553.0,7.719e-05]
[1765772515102,0.01571,89554.0,89553.0,0.00107719]
[1765772516553,0.23903894,89554.0,89553.0,0.00107719]
[1765772516727,0.37414994,89554.0,89553.0,0.00107719]
[1765772521510,0.37414994,89554.0,89553.0,7.719e-05]
[1765772521511,1.26454181,89554.0,89553.0,7.719e-05]
[1765772522322,1.26554181,89554.0,89553.0,7.719e-05]
[1765772522950,1.26454181,89554.0,89553.0,7.719e-05]
[1765772523249,1.26554181,89554.0,89553.0,7.719e-05]
[1765772524307,1.37776281,89554.0,89553.0,7.719e-05]
[1765772540492,0.50386281,89554.0,89553.0,7.719e-05]
[1765772552070,0.51503012,89554.0,89553.0,7.719e-05]
[1765772552479,0.002,89554.0,89553.0,0.27533862]
[1765772553187,0.002,89554.0,89553.0,0.3088785]
[1765772553388,0.002,89554.0,89553.0,0.2840385]
[1765772553585,0.001,89554.0,89553.0,0.2569485]
[1765772553789,0.001,89554.0,89553.0,0.2983085]
[1765772554423,0.01116544,89562.0,89559.0,0.01116582]
[1765772555009,0.01116557,89561.0,89557.0,0.01116607]
[1765772555206,0.01116557,89561.0,89558.0,0.01116594]
[1765772555826,0.01116569,89560.0,89557.0,0.01116607]
[1765772556671,0.01116607,89557.0,89554.0,0.01116619]
[1765772556883,0.01116594,89558.0,89554.0,0.02233263]
[1765772558406,0.01116607,89557.0,89554.0,0.02233263]
[1765772558789,0.01116594,89558.0,89555.0,0.01116632]
[1765772558995,0.01216594,89558.0,89555.0,0.01116632]
[1765772559272,0.22332644,89555.0,89554.0,0.01116619]
[1765772559454,0.23980644,89555.0,89554.0,0.01116619]
[1765772559689,0.26338644,89555.0,89554.0,0.001]
[1765772561044,0.04006,89555.0,89553.0,7.719e-05]
[1765772561463,0.01648,89554.0,89553.0,7.719e-05]
[1765772562061,0.04006,89554.0,89553.0,7.719e-05]
[1765772562282,0.42131307,89554.0,89553.0,7.719e-05]
[1765772562656,0.43248001,89554.0,89553.0,7.719e-05]
[1765772562874,0.34353981,89554.0,89553.0,7.719e-05]
[1765772563080,0.34353981,89554.0,89553.0,0.00107719]
[1765772563893,1.34353981,89554.0,89553.0,0.00107719]
[1765772564109,1.45476081,89554.0,89553.0,7.719e-05]
[1765772564319,1.45576081,89554.0,89553.0,7.719e-05]
[1765772564934,1.45476081,89554.0,89553.0,7.719e-05]
[1765772565371,1.40857005,89554.0,89553.0,7.719e-05]
[1765772565565,1.51979105,89554.0,89553.0,7.719e-05]
[1765772566007,1.45576081,89554.0,89553.0,7.719e-05]
[1765772568856,1.34453981,89554.0,89553.0,7.719e-05]
[1765772569157,1.45576081,89554.0,89553.0,7.719e-05]
[1765772570335,1.45476081,89554.0,89553.0,7.719e-05]
[1765772570577,1.45776081,89554.0,89553.0,7.719e-05]
[1765772570737,1.56826843,89554.0,89553.0,7.719e-05]
[1765772570951,1.56526843,89554.0,89553.0,7.719e-05]
[1765772571218,1.56526843,89554.0,89525.0,0.0004]
[1765772571219,0.22339878,89526.0,89525.0,0.0004]
[1765772571369,0.22339878,89526.0,89525.0,0.00047721]
[1765772571370,0.24603878,89526.0,89525.0,0.00047721]
[1765772571689,0.26961878,89526.0,89525.0,0.00047721]
[1765772572330,0.26961878,89526.0,89525.0,0.00247721]
[1765772572873,0.38083978,89526.0,89525.0,0.00247721]
[1765772573301,1.38083978,89526.0,89525.0,0.00247721]
[1765772573500,1.38083978,89526.0,89525.0,0.00147721]
[1765772574012,1.38083978,89526.0,89525.0,0.00047721]
[1765772574186,1.38183978,89526.0,89525.0,0.00047721]
[1765772575988,1.27061878,89526.0,89525.0,0.00047721]
[1765772576622,1.38183978,89526.0,89525.0,0.00047721]
[1765772580733,1.7830474,89526.0,89525.0,0.00047721]
[1765772582017,1.7820474,89526.0,89525.0,0.00047721]
[1765772582446,1.7850474,89526.0,89525.0,0.00047721]
[1765772582878,0.401921,89518.0,89517.0,0.0004]
[1765772583046,1.65294975,89518.0,89517.0,0.0004]
[1765772583245,1.67676975,89518.0,89517.0,0.0004]
[1765772583479,1.68124431,89518.0,89517.0,0.0004]
[1765772584020,1.68224431,89518.0,89517.0,0.0004]
[1765772584441,0.68224431,89518.0,89517.0,0.0004]
[1765772584615,1.57102331,89518.0,89517.0,0.0004]
[1765772585049,1.57202331,89518.0,89517.0,0.0004]
[1765772585192,0.58966331,89518.0,89517.0,0.0004]
[1765772585398,0.57202331,89518.0,89517.0,0.0004]
[1765772585797,0.68324431,89518.0,89517.0,0.0004]
[1765772585999,1.77608513,89518.0,89517.0,0.0004]
[1765772586356,1.68324431,89518.0,89517.0,0.0004]
[1765772586517,1.68485718,89518.0,89517.0,0.0004]
[1765772595379,1.57263618,89518.0,89517.0,0.0004]
[1765772595538,1.68385718,89518.0,89517.0,0.0004]
[1765772595743,1.68585718,89518.0,89517.0,0.0004]
[1765772595952,1.78769523,89518.0,89517.0,0.0004]
[1765772596148,1.78869523,89518.0,89517.0,0.0004]
[1765772599405,1.68685718,89518.0,89517.0,0.0004]
[1765772600292,1.71093425,89518.0,89517.0,0.0004]
[1765772601278,1.72138743,89518.0,89517.0,0.0004]
[1765772602019,1.71093425,89518.0,89517.0,0.0004]
[1765772602359,1.68685718,89518.0,89517.0,0.0004]
[1765772602712,1.726829,89518.0,89517.0,0.0004]
[1765772602913,1.73728566,89518.0,89517.0,0.0004]
[1765772603725,0.62536471,89508.0,89507.0,0.0004]
[1765772603946,0.69443471,89508.0,89507.0,0.0004]
[1765772604321,0.69890967,89508.0,89507.0,0.0004]
[1765772604917,0.69990967,89508.0,89507.0,0.0004]
[1765772605653,1.69990967,89508.0,89507.0,0.0004]
[1765772607295,0.57104867,89508.0,89507.0,0.0004]
[1765772607758,0.68226967,89508.0,89507.0,0.0004]
[1765772609580,0.72823637,89508.0,89507.0,0.0004]
[1765772609780,0.75235744,89508.0,89507.0,0.0004]
[1765772610853,0.71686061,89508.0,89507.0,0.0004]
[1765772616127,0.70639074,89508.0,89507.0,0.0004]
[1765772616344,0.59516974,89508.0,89507.0,0.0004]
[1765772616540,0.69274024,89508.0,89507.0,0.0004]
[1765772616762,0.71686131,89508.0,89507.0,0.0004]
[1765772617096,1.82736893,89508.0,89507.0,0.0004]
[1765772617299,0.51415869,89502.0,89501.0,0.0004]
[1765772617528,1.62538968,89498.0,89497.0,0.00403493]
[1765772617698,1.66916968,89498.0,89497.0,0.00403493]
[1765772617898,1.69220968,89498.0,89497.0,0.00403493]
[1765772618118,0.69220968,89498.0,89497.0,0.00403493]
[1765772618297,1.69220968,89498.0,89497.0,0.00403493]
[1765772618691,1.71632986,89498.0,89497.0,0.00403493]
[1765772619081,0.71732986,89498.0,89497.0,0.00403493]
[1765772619369,0.0111773,89467.0,89460.0,0.22356157]
[1765772619572,0.01117705,89469.0,89465.0,0.01117755]
[1765772619791,0.01117693,89470.0,89467.0,0.0111773]
[1765772620199,0.01117755,89465.0,89460.0,0.00038489]
[1765772620424,0.02807,89461.0,89460.0,0.00038489]
[1765772620774,0.05111,89461.0,89460.0,0.00038489]
[1765772621489,0.05111,89461.0,89460.0,0.01438489]
[1765772622127,0.05111,89461.0,89460.0,0.00338489]
[1765772622306,0.05111,89461.0,89460.0,0.00538489]
[1765772622887,0.02807,89461.0,89460.0,0.00538489]
[1765772625347,0.05111,89461.0,89460.0,0.00538489]
[1765772625888,0.05111,89461.0,89460.0,0.00650413]
[1765772626106,0.162331,89461.0,89460.0,0.00650413]
[1765772626515,0.162331,89461.0,89460.0,0.00450413]
[1765772626676,0.162331,89461.0,89460.0,0.00150413]
[1765772627110,0.162331,89461.0,89460.0,0.00350413]
[1765772627479,0.05111,89461.0,89460.0,0.00150413]
[1765772627688,0.05111,89461.0,89460.0,0.00450413]
[1765772628176,0.05111,89461.0,89460.0,0.00250413]
[1765772628574,1.162331,89461.0,89460.0,0.00250413]
[1765772629814,1.162331,89461.0,89460.0,0.00150413]
[1765772630884,1.163331,89461.0,89460.0,0.00150413]
[1765772631725,0.589831,89461.0,89460.0,0.00150413]
[1765772632672,0.163331,89461.0,89460.0,0.00150413]
[1765772632870,1.163331,89461.0,89460.0,0.00150413]
[1765772633101,1.454031,89461.0,89460.0,0.00150413]
[1765772636068,0.613231,89461.0,89460.0,0.00150413]
[1765772636383,1.454031,89461.0,89460.0,0.00150413]
[1765772636593,0.657431,89461.0,89460.0,0.00150413]
[1765772637173,0.53551,89461.0,89460.0,0.00150413]
[1765772637375,0.454031,89461.0,89460.0,0.00150413]
[1765772637575,0.36045,89461.0,89460.0,0.00150413]
[1765772638020,0.471671,89461.0,89460.0,0.00150413]
[1765772638446,0.6952321,89461.0,89460.0,0.00150413]
[1765772640136,1.6952321,89461.0,89460.0,0.00150413]
[1765772641550,1.3587711,89461.0,89460.0,0.00150413]
[1765772641729,0.5840111,89461.0,89460.0,0.00150413]
[1765772642674,0.6952321,89461.0,89460.0,0.00150413]
[1765772646071,1.67352644,89461.0,89460.0,0.00150413]
[1765772646280,1.33481709,89447.0,89446.0,0.0004]
[1765772646500,1.40431994,89447.0,89446.0,0.0004]
[1765772646706,0.40431994,89447.0,89446.0,0.0004]
[1765772646916,0.69981994,89447.0,89446.0,0.0004]
[1765772647126,1.40431994,89447.0,89446.0,0.0004]
[1765772648202,0.29309894,89447.0,89446.0,0.0004]
[1765772648403,0.40431994,89447.0,89446.0,0.0004]
[1765772649214,0.70921994,89447.0,89446.0,0.0004]
[1765772650240,1.40431994,89447.0,89446.0,0.0004]
[1765772650708,0.51431109,89441.0,89440.0,0.0004]
[1765772650924,0.51431109,89441.0,89427.0,0.0004]
[1765772650925,0.2236436,89428.0,89427.0,0.0004]
[1765772651139,0.2513336,89428.0,89427.0,0.0004]
[1765772651332,0.2751236,89428.0,89427.0,0.0004]
[1765772652020,0.3863446,89428.0,89427.0,0.0004]
[1765772652424,0.3863446,89428.0,89427.0,0.00139881]
[1765772652645,0.3863446,89428.0,89427.0,0.00339881]
[1765772652853,0.3863446,89428.0,89427.0,0.00139881]
[1765772653061,0.2751236,89428.0,89427.0,0.00139881]
[1765772653275,0.3863446,89428.0,89427.0,0.00139881]
[1765772654369,0.41993916,89428.0,89427.0,0.00139881]
[1765772654599,1.71225203,89428.0,89427.0,0.00139881]
[1765772654823,0.01118505,89405.0,89397.0,0.01118605]
[1765772655056,0.02769,89400.0,89397.0,0.01118605]
[1765772656015,0.01344287,89400.0,89399.0,0.002]